Cogmind - Beta 16.1 @@@ ROGUE MODE // 2026.03.25 @ 02:42:27 Player: FL-IST Result: Destroyed by exploding Nuclear Reactor Performance ------------- Evolutions (0) 0 Regions Visited (1) 200 Robots Destroyed (34) 170 Value Destroyed (442) 442 Prototype IDs (0) 0 Alien Tech Used (0) 0 Bonus (0) 0 TOTAL SCORE: 812 Bonus ------- None Cogmind --------- Core Integrity 0/250 Matter 234/300 Energy 125/125 System Corruption 0% Temperature Cool (5) Movement Treading (160) Location -10/Materials Parts ------- > --- POWER (1) -------- Light Ion Engine > --- PROPULSION (2) --- Light Treads Light Treads > --- UTILITY (2) ------ Heat Sink Small Storage Unit > --- WEAPON (2) ------- Medium Laser Light Cannon > --- INVENTORY (8) ---- Light Treads Wheel Seismic Detector Small Laser Peak State ------------ > --- POWER ------------ Ion Engine > --- PROPULSION ------- Light Treads Light Treads > --- UTILITY ---------- Heat Sink Small Storage Unit > --- WEAPON ----------- Medium Laser Small Laser > --- INVENTORY -------- Seismic Detector [Rating: 7] Favorites ----------- Power Ion Engine Engine Ion Engine Propulsion Light Treads Treads Light Treads Wheel Wheel Utility Small Storage Unit Device Heat Sink Storage Small Storage Unit Weapon Medium Laser Energy Gun Medium Laser Ballistic Cannon Light Cannon Build | -11 -10 ------- Run | Yrd Mat Slots Evolved . | . . Power . | . . Propulsion . | . . Utility . | . . Weapon . | . . Parts Attached 13 | 6 7 Power 3 | 1 2 Engine 3 | 1 2 Core . | . . Reactor . | . . Propulsion 5 | 2 3 Treads 4 | 2 2 Leg . | . . Wheel 1 | . 1 Hover . | . . Flight . | . . Utility 2 | 1 1 Device 1 | . 1 Storage 1 | 1 . Processor . | . . Hackware . | . . Protection . | . . Artifact . | . . Weapon 3 | 2 1 Energy Gun 2 | 2 . Energy Cannon . | . . Ballistic Gun . | . . Ballistic Cannon 1 | . 1 Launcher . | . . Special Weapon . | . . Impact Weapon . | . . Slashing Weapon . | . . Piercing Weapon . | . . Special Melee Weapon . | . . Unidentified Prototypes . | . . Parts Lost 1 | . 1 Power . | . . Propulsion 1 | . 1 Utility . | . . Weapon . | . . Highest Loss Streak 1 | . 1 To Critical Strikes . | . . Average Backups 1 | . 1 Power . | . . Propulsion . | . . Utility . | . 1 Weapon . | . . Tool/Special . | . . Unused Backups 1 | . 1 Power . | . . Propulsion . | . . Utility 1 | . 1 Weapon . | . . Tool/Special . | . . Average Slot Usage (%) 94 | . 94 Engine 13 | . 13 Treads 18 | . 18 Wheel 8 | . 8 Device 10 | . 10 Storage 14 | . 14 Energy Gun 19 | . 19 Ballistic Cannon 8 | . 8 Peak Build Rating 7 | 6 7 Average Rating 6 | 5 6 On Entrance 3 | . 6 Avg Prop Armor Cover (%) 8 | . 8 Naked Turns . | . . Heaviest Build 14 | 13 14 Greatest Support 40 | 40 40 Greatest Overweight (x) 1 | . 1 Average Overweight (x) . | . . Largest Inventory Capacity 8 | 8 8 Average Capacity 7 | 7 8 Most Carried 4 | 1 4 Average Carried 1 | . 1 Final Capacity 8 | 8 8 Final Carried 4 | 1 4 Class Distribution -------------------- 91% | Mutant 8% | Scavenger-Mutant Dominant Class ---------------- Mutant | -10/Materials Resources | -11 -10 ----------- Run | Yrd Mat Matter Collected 403 | 260 143 Remotely . | . . Salvage Created 949 | 292 657 Parts 62 | 17 45 Haulers Intercepted 1 | . 1 Recyclers Shooed 2 | . 2 Parts Field Recycled . | . . Retrieved Matter . | . . Parts Self-Destructed . | . . Prevented . | . . Parts Restored . | . . Kills | -11 -10 ------- Run | Yrd Mat Combat Hostiles Destroyed 13 | . 13 Guns 11 | . 11 Cannons 1 | . 1 AOE 1 | . 1 Classes Destroyed 8 | 3 5 Worker 3 | 2 1 Builder 2 | . 2 Tunneler 9 | 9 . Hauler 1 | . 1 Recycler 3 | 1 2 Watcher 3 | . 3 Swarmer 6 | . 6 Grunt 7 | . 7 Best Kill Streak 7 | 3 7 Combat Bots Only 6 | . 6 Max Kills in Single Turn 1 | 1 1 Gunslinging . | . . Exploded 1 | . 1 Melee . | . . Uniques/NPCs Destroyed . | . . Combat | -11 -10 -------- Run | Yrd Mat Hostile Shots Fired 60 | . 60 Missed 16 | . 16 Hits 44 | . 44 Projectile 44 | . 44 AOE 1 | . 1 Damage Taken 612 | . 612 Core 251 | . 251 Absorbed by Shields . | . . Core Remaining (%) 100 | 100 . Volleys Fired 91 | 35 56 Largest 2 | 2 2 Hottest 90 | 90 90 Shots Fired 181 | 69 112 Gun 163 | 69 94 Cannon 18 | . 18 Launcher . | . . Special . | . . Kinetic 18 | . 18 Thermal 163 | 69 94 Explosive . | . . Electromagnetic . | . . Robot Hit Streak 16 | 6 16 Robot Miss Streak 6 | 4 6 Penetration Max . | . . Secondary Targets . | . . Shots Hit Robots 109 | 42 67 Core Hits 44 | 13 31 Critical Kills . | . . Critical Parts Destroyed . | . . Critical Strikes 11 | 6 5 Burn 11 | 6 5 Melee Attacks . | . . Impact . | . . Slashing . | . . Piercing . | . . Sneak Attacks . | . . Combat Hostiles . | . . Follow-up Attacks . | . . Damage Inflicted 1382 | 498 884 Guns 1191 | 498 693 Cannons 189 | . 189 Explosions . | . . Melee . | . . Ramming 2 | . 2 Kinetic 189 | . 189 Thermal 1191 | 498 693 Explosive . | . . Electromagnetic . | . . Impact . | . . Slashing . | . . Piercing . | . . Highest Corruption . | . . Average Corruption . | . . Corruption Purged . | . . Corruption Blocked . | . . Overload Shots . | . . Overflow Damage . | . . Projectiles . | . . Explosions . | . . Melee . | . . Knockbacks 7 | . 7 Impact . | . . Kinetic 7 | . 7 Secondary . | . . Self-Inflicted Damage . | . . Shots . | . . Rammed 2 | . 2 Targets Rammed 3 | . 3 Kicked . | . . Crushed 1 | . 1 Highest Temperature 300 | 300 234 Average Temperature 113 | 126 86 Received Heat Transfer 171 | . 171 Effects 1 | 1 . Energy Bleed 1 | 1 . Siege Activations . | . . Martial Activations . | . . Shielding Activations . | . . Robots Disrupted . | . . Combat Hostiles . | . . Robots Corrupted . | . . Combat Hostiles . | . . Parts Fried . | . . Impact Corruptions . | . . Robots Melted . | . . Combat Hostiles . | . . Parts Melted 12 | 9 3 Heat Transferred 4009 | 1794 2215 Parts Sabotaged . | . . Parts Stolen . | . . Parts Stripped . | . . Power Chain Reactions . | . . Alert | -11 -10 ------- Run | Yrd Mat Maximum Alert Level . | . . Low Security (%) 100 | 100 100 Level 1 . | . . Level 2 . | . . Level 3 . | . . Level 4 . | . . Level 5 . | . . High Security . | . . Max Security . | . . Peak Influence 194 | 15 194 Initial . | . . Average 66 | 2 92 Influence Increases 503 | 60 443 Destroy 0b10 Robot/C 260 | . 260 Destroy 0b10 Robot/NC 105 | 60 45 Destroy Leader 48 | . 48 Select Force Hacks 60 | . 60 Lose Combat Pursuer 30 | . 30 Influence Decreases 370 | 60 310 Time Decay 360 | 60 300 Lost Part 10 | . 10 Squads Dispatched 3 | . 3 Investigation 2 | . 2 Extermination . | . . Reinforcement 1 | . 1 Assault . | . . Garrison . | . . Intercept . | . . Searches Triggered . | . . Construction Impeded . | . . Haulers Reinforced . | . . Active Scanning Responses . | . . Cargo Convoy Interrupts . | . . Stealth | -11 -10 --------- Run | Yrd Mat Distress Signals 3 | . 3 Communications Jammed . | . . Distress Signals . | . . Times Spotted 22 | . 22 Peak Tracking Total 4 | . 4 Tactical Retreats 2 | . 2 Traps | -11 -10 ------- Run | Yrd Mat Traps Triggered 4 | . 4 Indirectly . | . . Trap Hack Attempts . | . . Triggered . | . . Disarmed . | . . Reprogrammed . | . . Reused . | . . Traps Extracted . | . . Installed . | . . Triggered . | . . Machines | -11 -10 ---------- Run | Yrd Mat Machines Disabled . | . . Max in Single Turn . | . . Machines Repaired . | . . Machines Dismantled . | . . Machines Sabotaged . | . . Overloaded Fab Kills . | . . Hacking | -11 -10 --------- Run | Yrd Mat Machines Accessed 4 | . 4 Terminals 2 | . 2 Fabricators . | . . Repair Stations . | . . Recycling Units 2 | . 2 Scanalyzers . | . . Garrison Access . | . . Total Hacks 14 | . 14 Successful 7 | . 7 Failed 7 | . 7 Catastrophic . | . . Database Lockouts . | . . Manual 8 | . 8 Terminals 8 | . 8 Fabricators . | . . Repair Stations . | . . Recycling Units 6 | . 6 Scanalyzers . | . . Garrison Access . | . . Terminal Hacks 1 | . 1 Locate Traps 1 | . 1 Fabricator Hacks . | . . Repair Station Hacks . | . . Recycling Unit Hacks 2 | . 2 Retrieve Components 2 | . 2 Scanalyzer . | . . Garrison Access Hacks . | . . Unauthorized Hacks 4 | . 4 Terminals 2 | . 2 Skim 2 | . 2 Fabricators . | . . Repair Stations . | . . Recycling Units 2 | . 2 Tunnel 2 | . 2 Scanalyzers . | . . Garrison Access . | . . Data Cores Recovered . | . . Used . | . . Hacking Detections 2 | . 2 Full Trace Events . | . . Feedback Events . | . . Feedback Blocked . | . . Robot Schematics Acquired . | . . Robots Built . | . . Authchips . | . . Time . | . . Total Robot Build Rating . | . . Part Schematics Acquired . | . . Parts Built . | . . Authchips . | . . Time . | . . Total Part Build Rating . | . . Part Studies Acquired . | . . Parts Repaired . | . . Time . | . . Parts Recycled . | . . Recycled Matter . | . . Retrieved Matter . | . . Retrieved Components 11 | . 11 Parts Scanalyzed . | . . Part Schematics Acquired . | . . Parts Damaged . | . . Bothacking | -11 -10 ------------ Run | Yrd Mat Used RIF Installer . | . . Robots Hacked . | . . Non-combat . | . . Combat . | . . Robot Hacks Applied . | . . Relay Couplers Released . | . . Fabnet Peak Effective % . | . . Robots Rewired . | . . Allies Hacked . | . . Hacks Repelled . | . . Allies | -11 -10 -------- Run | Yrd Mat Total Allies . | . . Largest Group . | . . Highest-Rated Group . | . . Highest-Rated Ally . | . . Total Orders . | . . Ally Attacks . | . . Total Damage . | . . Kills . | . . Allies Corrupted . | . . Allies Melted . | . . Intel | -11 -10 ------- Run | Yrd Mat Active Infowar (turns) . | . . Robot Analysis Total . | . . Derelict Logs Recovered . | . . Drone Launches . | . . Drone Recoveries . | . . Exploration | -11 -10 ------------- Run | Yrd Mat Turns Passed 974 | 282 692 Spaces Moved 413 | 80 333 Core 3 | 3 . Treads 244 | 77 167 Legs . | . . Wheels 166 | . 166 Hover . | . . Flight . | . . Fastest Speed 50 | 50 80 Average Speed 133 | 155 127 Slowest Speed 160 | 160 160 Overloaded Moves . | . . Propulsion Burnouts . | . . Robots Hopped . | . . Potential Cave-ins . | . . Cave-ins Triggered . | . . Exploration Rate (%) 31 | 4 58 Regions Visited 1 Branch Regions . Pre-discovered Areas 2 | . 2 Known Exits Taken . | . . Unknown Exits Taken 1 | 1 . Scrap Searched . | . . Spaces Dug . | . . Terrain Destroyed . | . . Melee . | . . Projectile . | . . AOE . | . . Terrain Rammed . | . . Walls Destroyed . | . . Machines Disabled . | . . Actions | -11 -10 --------- Run | Yrd Mat Total 645 | 165 480 Wait 114 | 44 70 Move 412 | 79 333 Hop . | . . Pick Up 3 | 1 2 Fast Attach 17 | 6 11 Attach . | . . Detach . | . . Swap 4 | . 4 Drop 1 | . 1 Fire 91 | 35 56 Melee . | . . Ram . | . . Kick . | . . Crush 3 | . 3 Escape Stasis . | . . Rewire . | . . Trap . | . . Miscellaneous . | . . Route ------- -11/Scrapyard -10/Materials (discovered 1 exit: [*Mat]) History --------- Turn | Location | Event 34 | -11/Scrapyard | Discovered new exit (range 16) 283 | -11/Scrapyard | Entered Materials 303 | -10/Materials | Build established: Mutant 643 | -10/Materials | Discovered new exit (range 7) 783 | -10/Materials | Derelicts attacked the area 975 | -10/Materials | Destroyed by exploding Nuclear Reactor Last Messages --------------- Aluminum Leg Terrain Scanner Sml. Laser Flight Unit Aluminum Leg Wheel Terrain Scan Processor Terrain Scanner Welding Torch >>Force(Tunnel) DISCOVERED[-3/Research] 00950_ ALERT: Suspicious activity at Recycling Unit M001. Dispatching Investigation squad. 00962_ G-34 Mercenary knocked back. 00973_ G-34 Mercenary suffers critical hit (Burn). 00973_ G-34 Mercenary knocked back. 00975_ Nuclear Reactor explodes. 00975_ G-47 Trooper destroyed. 00975_ G-34 Mercenary destroyed. 00975_ Nuclear Reactor explodes. Map ----- +----------------------------------------------------+ | ??????????????????????????????????????????? | | ??????????????????????????????????????????? | | ??????????????????????????????????????????? | | ??????????????????????????????????????????? | | ??????????????????????????????????????????? | | ??????????????????????????????????????????? | | ??????????????????????????????????????????? | | ??????????????????????????????????????????? | | ??????????????????????????????????????????? | | ??????????????????????????????????????????? | | ??????????????????????????????????????????? | | ??????????????????????????????????????????? | | ???????????????????????????#####??????????? | | ??????????????????????????? ??????????? | | ??????????????????????????? ???????????? | | ??????????????????????????? ???????????? | | ????????????????#######???? ###??###????? | | ????????????????# ##### # ?? ?????? | | ????????????????# t /?? ""?????? | | ????????????????+ T #? ""?????? | | ????????????????#g g # """ ???? | | ????????????????# #??? | | ?? ????????????# # ] #??? | | ?# ????????????# =! #??? | | ?# ############# #??? | | ?# @! "T" ??????? | | ?# %= ##????????? | | ?# *% #?????????? | | ?# # #?????????? | | ?# % o!# ! ??????????? | | ?# #########+#####!#!! ??????????? | | ?# #?# % ##!#! ??????????? | | ?# #?# ##%#####+####???????????? | | ?# #?# % ##!#???? ??????????????? | | ?# #?# ##%#???? ??????????????? | | ?# #?# ##+#????? ??????????????? | | ## ### #???????????????????????? | | # #######/#####???????????????????????? | | # #?????????????????????????? | | # " #?????????????????????????? | | # #?????????????????????????? | | # ######### #?????????????????????????? | | ## ##???#####+###???????????????????????? | | %# #????# #???????????????????????? | | # #????# *! #???????????????????????? | | *#= =#????#[%""" #???????????????????????? | | =#===######%""""" #???????????????????????? | | *#=! ! #%""""" #???????????????????????? | | %+%%[*%= %+%""""" #???????????????????????? | | !#*[""" [#**""" #???????????????????????? | +----------------------------------------------------+ Best States ------------- Heat Dissipation 35 Energy Generation 10 Energy Capacity 250 Matter Stores 300 Matter Capacity 300 Sight Range 16 Terrain Scan Density 10 Evasion (%) 44 Recoil Reduction 2 Item Schematics ----------------- None Robot Schematics ------------------ None Fabricated ------------ Nothing Repaired ---------- Nothing Studied --------- None Alien Tech Used ----------------- None Achievements -------------- None Challenges ------------ None Game ------ Seed PotentialGodNukerbomber Manual? 0 Play Time 00:05:34 Cumulative 351.0 hours Start 2026.03.25 @ 02:20:02 End 2026.03.25 @ 02:42:27 Sessions 3 Manual Loads 0 Difficulty Rogue Special Mode None Game No. 276 Rogue 276 Adventurer 0 Explorer 0 Win Type - Total 19 Types 10/0/7/2/0/0/0/0/0/0 Lore% 87 Gallery% 76 Achievement% 65 Wizard Run 0 Options --------- Layout 1 ASCII 0 Keyboard 0 Movement Numpad Keybinds 0 Fullscreen 1 Font 32/SmallcapsGlow Map View 77x35 Zoom Use 0% Tactical HUD 1 Map Filters NONE Filters NONE Steam 1 RUN: b54d3207-2d51-4c24-af11-422cf83562fe